fUST/lending_fUST_20250601
["ID","MTS","AMOUNT","RATE_DAILY","PERIOD"]
[363528600,1748753141762,-430.0,0.00017534,2]
[363528601,1748753141786,-430.0,0.00017534,2]
[363528602,1748753141811,-429.72,0.00017534,2]
[363528603,1748753141835,-430.0,0.00017534,2]
[363528604,1748753141860,-430.0,0.00017534,2]
[363528605,1748753141887,-430.0,0.00017534,2]
[363528606,1748753141915,-430.0,0.00017534,2]
[363528607,1748753141942,-658.03,0.00017534,2]
[363528608,1748753141968,-430.0,0.00017534,2]
[363528609,1748753141994,-1481.68,0.00017534,2]
[363528610,1748753142018,-1671.64,0.00017534,2]
[363528611,1748753142043,-438.98,0.00017534,2]
[363528612,1748753142070,-1040.54,0.00017534,2]
[363528613,1748753142095,-430.0,0.00017534,2]
[363528614,1748753142120,-430.0,0.00017534,2]
[363528615,1748753142146,-430.0,0.00017534,2]
[363528616,1748753142175,-430.0,0.00017534,2]
[363528617,1748753142198,-430.0,0.00017534,2]
[363528618,1748753142223,-430.0,0.00017534,2]
[363528619,1748753142248,-727.55,0.00017534,2]
[363528620,1748753142273,-430.0,0.00017534,2]
[363528621,1748753142298,-250.52,0.00017534,2]
[363528622,1748753142326,-1454.59,0.00017534,2]
[363528623,1748753142351,-151.67009805,0.00017534,2]
[363528624,1748753142378,-810.15,0.00017534,2]
[363528625,1748753142408,-430.0,0.00017534,2]
[363528626,1748753142434,-578.15,0.00017534,2]
[363528627,1748753142460,-430.0,0.00017534,2]
[363528628,1748753142485,-568.36,0.00017534,2]
[363528629,1748753142510,-430.0,0.00017534,2]
[363528630,1748753142534,-430.0,0.00017534,2]
[363528631,1748753142558,-430.0,0.00017534,2]
[363528632,1748753142582,-314.75005115,0.00017534,2]
[363528796,1748753205842,162.93077498,6.8e-07,2]
[363528797,1748753205938,162.93077498,6.8e-07,2]
[363528798,1748753213684,-486.65474464,0.00016438,2]
[363528799,1748753213711,-430.0,0.00016438,2]
[363528800,1748753213738,-539.55,0.00016438,2]
[363528801,1748753213764,-389.75,0.00016438,2]
[363528802,1748753213791,-430.0,0.00016438,2]
[363528803,1748753213818,-847.12,0.00016438,2]
[363528804,1748753213843,-430.0,0.00016438,2]
[363528805,1748753213870,-430.0,0.00016438,2]
[363528806,1748753213909,-430.0,0.00016438,2]
[363528807,1748753213936,-430.0,0.00016438,2]
[363528808,1748753213962,-430.0,0.00016438,2]
[363528809,1748753213990,-1365.4,0.00016438,2]
[363528810,1748753214017,-430.0,0.00016438,2]
[363528811,1748753214044,-430.0,0.00016438,2]
[363528812,1748753214071,-430.0,0.00016438,2]
[363528813,1748753214097,-430.0,0.00016438,2]
[363528814,1748753214124,-1389.4,0.00016438,2]
[363528815,1748753214150,-430.0,0.00016438,2]
[363528816,1748753214177,-575.98,0.00016438,2]
[363528817,1748753214203,-430.0,0.00016438,2]
[363528818,1748753214230,-663.33,0.00016438,2]
[363528819,1748753214256,-430.0,0.00016438,2]
[363528820,1748753214281,-430.0,0.00016438,2]
[363528821,1748753214307,-292.81525536,0.00016438,2]
[363528822,1748753230091,-137.18474464,0.00016438,2]
[363528823,1748753230113,-430.0,0.00016438,2]
[363528824,1748753230136,-43.41383573,0.00016438,2]
[363528825,1748753230166,-386.58616427,0.00016438,2]
[363528826,1748753230188,-430.0,0.00016438,2]
[363528827,1748753230212,-430.0,0.00016438,2]
[363528828,1748753230234,-205.35506344,0.00016462,2]
[363528830,1748753242087,668.151178,0.00013699,2]
[363529158,1748753432364,-10296.5100754,0.00015661,2]
[363529160,1748753432374,-3671.53224165,0.00016274,2]
[363529161,1748753432385,-531.97,0.00016438,2]
[363529162,1748753432396,-443.43873763,0.00016438,2]
[363529163,1748753432406,-441.54551135,0.00016438,2]
[363529164,1748753432416,-430.0,0.00016438,2]
[363529165,1748753432426,-430.0,0.00016438,2]
[363529166,1748753432436,-430.0,0.00016438,2]
[363529167,1748753432445,-607.52446324,0.00016438,2]
[363529225,1748753438147,-751.83553676,0.00016438,2]
[363529227,1748753438157,-429.82932934,0.00016438,2]
[363529229,1748753438166,-430.0,0.00016438,2]
[363529231,1748753438176,-430.0,0.00016438,2]
[363529232,1748753438185,-430.0,0.00016438,2]
[363529234,1748753438195,-430.0,0.00016438,2]
[363529236,1748753438204,-430.0,0.00016438,2]
[363529238,1748753438213,-430.0,0.00016438,2]
[363529240,1748753438223,-430.0,0.00016438,2]
[363529242,1748753438233,-430.0,0.00016438,2]
[363529244,1748753438242,-448.20049251,0.00016438,2]
[363529246,1748753438252,-430.0,0.00016438,2]
[363529248,1748753438262,-430.0,0.00016438,2]
[363529251,1748753438272,-430.0,0.00016438,2]
[363529253,1748753438281,-430.0,0.00016438,2]
[363529255,1748753438291,-430.0,0.00016438,2]
[363529256,1748753438300,-430.0,0.00016438,2]
[363529258,1748753438309,-430.0,0.00016438,2]
[363529260,1748753438320,-460.66251831,0.00016438,2]
[363529262,1748753438330,-430.0,0.00016438,2]
[363529264,1748753438339,-450.89389746,0.00016438,2]
[363529266,1748753438349,-430.0,0.00016438,2]
[363529268,1748753438358,-453.87818066,0.00016438,2]
[363529270,1748753438368,-566.34,0.00016438,2]
[363529272,1748753438378,-563.81706226,0.00016438,2]
[363529273,1748753438388,-500.0,0.00016438,2]
[363529275,1748753438398,-430.0,0.00016438,2]
[363529277,1748753438407,-430.0,0.00016438,2]
[363529279,1748753438417,-500.0,0.00016438,2]
[363529281,1748753438427,-500.0,0.00016438,2]
[363529283,1748753438437,-488.56224471,0.00016438,2]
[363529285,1748753438446,-430.0,0.00016438,2]
[363529287,1748753438455,-430.0,0.00016438,2]
[363529288,1748753438465,-430.0,0.00016438,2]
[363529290,1748753438478,-430.0,0.00016438,2]
[363529292,1748753438491,-430.0,0.00016438,2]
[363529294,1748753438501,-430.0,0.00016438,2]
[363529296,1748753438510,-430.0,0.00016438,2]
[363529298,1748753438521,-430.0,0.00016438,2]
[363529300,1748753438531,-430.0,0.00016438,2]
[363529302,1748753438540,-430.0,0.00016438,2]
[363529305,1748753438561,-430.0,0.00016438,2]
[363529307,1748753438571,-430.0,0.00016438,2]
[363529309,1748753438581,-370.0,0.00016438,2]
[363529310,1748753438591,-430.0,0.00016438,2]
[363529312,1748753438601,-455.83,0.00016438,2]
[363529314,1748753438612,-430.0,0.00016438,2]
[363529316,1748753438622,-430.0,0.00016438,2]
[363529318,1748753438633,-430.0,0.00016438,2]
[363529320,1748753438643,-430.0,0.00016438,2]
[363529322,1748753438653,-484.85705169,0.00016438,2]
[363529324,1748753438662,-437.55,0.00016438,2]
[363529326,1748753438674,-560.98,0.00016438,2]
[363529328,1748753438684,-430.0,0.00016438,2]
[363529330,1748753438693,-467.84,0.00016438,2]
[363529332,1748753438703,-430.0,0.00016438,2]
[363529334,1748753438713,-438.78188227,0.00016438,2]
[363529336,1748753438723,-430.0,0.00016438,2]
[363529338,1748753438735,-430.0,0.00016438,2]
[363529340,1748753438745,-1445.06,0.00016438,2]
[363529342,1748753438755,-430.0,0.00016438,2]
[363529344,1748753438765,-430.0,0.00016461,2]
[363529346,1748753438776,-472.3660026,0.00016461,2]
[363529348,1748753438785,-728.13,0.00016461,2]
[363529349,1748753438795,-431.28351299,0.00016461,2]
[363529351,1748753438805,-450.0,0.00016461,2]
[363529353,1748753438815,-430.0,0.00016461,2]
[363529355,1748753438824,-430.0,0.00016461,2]
[363529356,1748753438834,-829.74,0.00016461,2]
[363529357,1748753438844,-430.0,0.00016461,2]
[363529358,1748753438855,-430.0,0.00016461,2]
[363529359,1748753438865,-338.14572276,0.00016461,2]
[363529360,1748753438875,-430.0,0.00016461,2]
[363529361,1748753438885,-430.0,0.00016461,2]
[363529362,1748753438895,-430.0,0.00016461,2]
[363529363,1748753438905,-436.53858466,0.00016461,2]
[363529364,1748753438915,-224.64493656,0.00016462,2]
[363529365,1748753438925,-400.0,0.00016462,2]
[363529366,1748753438935,-430.0,0.00016462,2]
[363529367,1748753438945,-430.0,0.00016462,2]
[363529368,1748753438954,-430.0,0.00016462,2]
[363529369,1748753438965,-262.33555041,0.00016462,2]
[363529370,1748753438975,-430.0,0.00016462,2]
[363529371,1748753438984,-430.0,0.00016462,2]
[363529372,1748753438995,-430.0,0.00016462,2]
[363529373,1748753439005,-430.0,0.00016462,2]
[363529374,1748753439015,-430.0,0.00016462,2]
[363529375,1748753439025,-1024.89975299,0.00016462,2]
[363529376,1748753439035,-345.89486169,0.00016462,2]
[363529377,1748753439044,-430.0,0.00016462,2]
[363529378,1748753439054,-430.0,0.00016462,2]
[363529379,1748753439069,-430.0,0.00016462,2]
[363529380,1748753439082,-430.49222869,0.00016462,2]
[363529381,1748753439092,-430.0,0.00016462,2]
[363529382,1748753439102,-430.0,0.00016462,2]
[363529383,1748753439112,-430.0,0.00016462,2]
[363529384,1748753439122,-430.0,0.00016462,2]
[363529385,1748753439132,-430.0,0.00016462,2]
[363529386,1748753439142,-430.0,0.00016462,2]
[363529387,1748753439152,-430.0,0.00016462,2]
[363529388,1748753439162,-430.0,0.00016462,2]
[363529389,1748753439173,-301.32491024,0.00016462,2]
[363529390,1748753439183,-307.03695198,0.00016462,2]
[363529391,1748753439193,-430.0,0.00016462,2]
[363529392,1748753439203,-430.0,0.00016462,2]
[363529394,1748753439213,-430.0,0.00016462,2]
[363529395,1748753439222,-268.3737017,0.00016462,2]
[363529396,1748753439232,-502.40494254,0.00016462,2]
[363529398,1748753439241,-430.0,0.00016462,2]
[363529399,1748753439251,-430.0,0.00016462,2]
[363529401,1748753439260,-430.0,0.00016462,2]
[363529403,1748753439270,-430.0,0.00016462,2]
[363529405,1748753439279,-430.0,0.00016462,2]
[363529407,1748753439289,-430.0,0.00016462,2]
[363529409,1748753439299,-430.0,0.00016462,2]
[363529412,1748753439309,-561.75737556,0.00016462,2]
[363529413,1748753439318,-420.0,0.00016462,2]
[363529416,1748753439328,-430.0,0.00016462,2]
[363529418,1748753439337,-373.92717138,0.00016462,2]
[363529419,1748753439347,-430.0,0.00016462,2]
[363529422,1748753439357,-430.0,0.00016462,2]
[363529424,1748753439366,-375.87908355,0.00016462,2]
[363529426,1748753439376,-344.23476378,0.00016462,2]
[363529428,1748753439386,-279.2748406,0.00016462,2]
[363529430,1748753439396,-430.0,0.00016462,2]
[363529432,1748753439405,-430.0,0.00016462,2]
[363529434,1748753439415,-430.0,0.00016462,2]
[363529436,1748753439424,-430.0,0.00016462,2]
[363529438,1748753439434,-430.0,0.00016462,2]
[363529440,1748753439444,-430.0,0.00016462,2]
[363529442,1748753439453,-443.66779385,0.00016462,2]
[363529444,1748753439462,-430.0,0.00016712,2]
[363529446,1748753439472,-430.0,0.00016712,2]
[363529449,1748753439486,-462.96306544,0.00016712,2]
[363529452,1748753439495,-430.0,0.00016712,2]
[363529455,1748753439505,-575.98,0.00016712,2]
[363529457,1748753439514,-663.33,0.00016712,2]
[363529460,1748753439525,-430.0,0.00016712,2]
[363529497,1748753439696,-430.0,0.00016712,2]
[363529500,1748753439707,-430.0,0.00016712,2]
[363529503,1748753439717,-531.97,0.00016712,2]
[363529506,1748753439726,-430.0,0.00016712,2]
[363529509,1748753439737,-1359.36,0.00016712,2]
[363529511,1748753439747,-430.0,0.00016712,2]
[363529515,1748753439757,-430.0,0.00016712,2]
[363529517,1748753439767,-430.0,0.00016712,2]
[363529520,1748753439777,-430.0,0.00016712,2]
[363529523,1748753439786,-430.0,0.00016712,2]
[363529527,1748753439796,-430.0,0.00016712,2]
[363529530,1748753439807,-430.0,0.00016712,2]
[363529532,1748753439817,-430.0,0.00016712,2]
[363529535,1748753439827,-430.0,0.00016712,2]
[363529538,1748753439836,-430.0,0.00016712,2]
[363529541,1748753439847,-430.0,0.00016712,2]
[363529544,1748753439858,-566.34,0.00016712,2]
[363529547,1748753439867,-430.0,0.00016712,2]
[363529549,1748753439877,-430.0,0.00016712,2]
[363529552,1748753439887,-430.0,0.00016712,2]
[363529555,1748753439897,-430.0,0.00016712,2]
[363529557,1748753439908,-430.0,0.00016712,2]
[363529560,1748753439918,-430.0,0.00016712,2]
[363529564,1748753439929,-430.0,0.00016712,2]
[363529567,1748753439938,-437.93623587,0.00016712,2]
[363529570,1748753439947,-430.0,0.00016712,2]
[363529572,1748753439956,-430.0,0.00016712,2]
[363529576,1748753439966,-430.0,0.00016712,2]
[363529578,1748753439975,-430.0,0.00016712,2]
[363529581,1748753439985,-430.0,0.00016712,2]
[363529583,1748753439994,-455.83,0.00016712,2]
[363529586,1748753440009,-430.0,0.00016712,2]
[363529589,1748753440021,-430.0,0.00016712,2]
[363529593,1748753440031,-430.0,0.00016712,2]
[363529596,1748753440041,-431.0,0.00016712,2]
[363529599,1748753440051,-560.98,0.00016712,2]
[363529602,1748753440061,-331.54265223,0.00016712,2]
[363529605,1748753440070,-467.84,0.00016712,2]
[363529608,1748753440080,-430.0,0.00016712,2]
[363529611,1748753440090,-430.0,0.00016712,2]
[363529614,1748753440099,-430.0,0.00016712,2]
[363529616,1748753440110,-1445.06,0.00016712,2]
[363529619,1748753440120,-430.0,0.00016712,2]
[363529622,1748753440130,-430.0,0.00016735,2]
[363529625,1748753440140,-728.13,0.00016735,2]
[363529628,1748753440150,-945.44,0.00016735,2]
[363529631,1748753440159,-430.0,0.00016735,2]
[363529634,1748753440169,-311.76237747,0.00016735,2]
[363529637,1748753440179,-1308.5,0.00016735,2]
[363529640,1748753440188,-829.74,0.00016735,2]
[363529643,1748753440198,-430.0,0.00016735,2]
[363529646,1748753440207,-430.0,0.00016735,2]
[363529649,1748753440217,-430.0,0.00016735,2]
[363529652,1748753440226,-430.0,0.00016736,2]
[363529655,1748753440235,-408.24031496,0.00016736,2]
[363529658,1748753440245,-430.0,0.00016736,2]
[363529661,1748753440255,-423.70980898,0.00016736,2]
[363529664,1748753440265,-388.08608637,0.00016736,2]
[363529666,1748753440275,-430.0,0.00016736,2]
[363529668,1748753440285,-430.0,0.00016736,2]
[363529670,1748753440294,-430.0,0.00016736,2]
[363529672,1748753440302,-430.0,0.00016736,2]
[363529674,1748753440312,-430.0,0.00016736,2]
[363529676,1748753440321,-430.0,0.00016736,2]
[363529678,1748753440330,-430.0,0.00016736,2]
[363529680,1748753440339,-430.0,0.00016736,2]
[363529681,1748753440349,-430.0,0.00016736,2]
[363529684,1748753440358,-430.0,0.00016736,2]
[363529685,1748753440368,-430.0,0.00016736,2]
[363529688,1748753440378,-430.0,0.00016736,2]
[363529689,1748753440387,-430.0,0.00016736,2]
[363529692,1748753440399,-430.0,0.00016736,2]
[363529694,1748753440408,-430.0,0.00016736,2]
[363529695,1748753440418,-430.0,0.00016736,2]
[363529697,1748753440427,-430.0,0.00016736,2]
[363529699,1748753440436,-541.22490982,0.00016736,2]
[363529701,1748753440446,-430.0,0.00016986,2]
[363529703,1748753440456,-430.0,0.00016986,2]
[363529706,1748753440469,-430.0,0.00016986,2]
[363529708,1748753440483,-575.98,0.00016986,2]
[363529710,1748753440494,-663.33,0.00016986,2]
[363529712,1748753440505,-430.0,0.00016986,2]
[363529714,1748753440515,-430.0,0.00016986,2]
[363529716,1748753440525,-430.0,0.00016986,2]
[363529718,1748753440535,-531.97,0.00016986,2]
[363529720,1748753440544,-430.0,0.00016986,2]
[363529722,1748753440556,-1359.36,0.00016986,2]
[363529724,1748753440565,-430.0,0.00016986,2]
[363529726,1748753440575,-430.0,0.00016986,2]
[363529728,1748753440584,-198.05,0.00016986,2]
[363529730,1748753440594,-430.0,0.00016986,2]
[363529732,1748753440604,-430.0,0.00016986,2]
[363529734,1748753440613,-430.0,0.00016986,2]
[363529736,1748753440622,-430.0,0.00016986,2]
[363529738,1748753440631,-430.0,0.00016986,2]
[363529740,1748753440641,-153.35420991,0.00016986,2]
[363529742,1748753440652,-218.78033384,0.00016986,2]
[363529744,1748753440661,-566.34,0.00016986,2]
[363529746,1748753440671,-430.0,0.00016986,2]
[363529748,1748753440681,-430.0,0.00016986,2]
[363529750,1748753440690,-430.0,0.00016986,2]
[363529752,1748753440700,-430.0,0.00016986,2]
[363529754,1748753440710,-430.0,0.00016986,2]
[363529756,1748753440719,-430.0,0.00016986,2]
[363529758,1748753440729,-430.0,0.00016986,2]
[363529760,1748753440738,-430.0,0.00016986,2]
[363529762,1748753440748,-430.0,0.00016986,2]
[363529764,1748753440758,-430.0,0.00016986,2]
[363529766,1748753440768,-430.0,0.00016986,2]
[363529768,1748753440778,-430.0,0.00016986,2]
[363529770,1748753440788,-455.83,0.00016986,2]
[363529772,1748753440798,-430.0,0.00016986,2]
[363529774,1748753440807,-430.0,0.00016986,2]
[363529776,1748753440817,-430.0,0.00016986,2]
[363529778,1748753440827,-560.98,0.00016986,2]
[363529780,1748753440836,-467.84,0.00016986,2]
[363529782,1748753440846,-430.0,0.00016986,2]
[363529784,1748753440856,-430.0,0.00016986,2]
[363529786,1748753440866,-430.0,0.00016986,2]
[363529788,1748753440876,-1445.06,0.00016986,2]
[363529790,1748753440885,-728.13,0.00017009,2]
[363529792,1748753440895,-945.44,0.00017009,2]
[363529794,1748753440906,-448.37737344,0.00017009,2]
[363529797,1748753440920,-1308.5,0.00017009,2]
[363529799,1748753440934,-829.74,0.00017009,2]
[363529802,1748753440949,-430.0,0.00017009,2]
[363529805,1748753440963,-430.0,0.00017009,2]
[363529807,1748753440975,-430.0,0.00017009,2]
[363529809,1748753440986,-430.0,0.0001701,2]
[363529812,1748753440999,-430.0,0.0001701,2]
[363529814,1748753441012,-430.0,0.0001701,2]
[363529816,1748753441024,-340.54967705,0.0001701,2]
[363529818,1748753441037,-430.0,0.0001701,2]
[363529821,1748753441050,-430.0,0.0001701,2]
[363529823,1748753441061,-450.52945816,0.0001701,2]
[363529826,1748753441075,-430.0,0.0001701,2]
[363529828,1748753441088,-430.0,0.0001701,2]
[363529830,1748753441100,-430.0,0.0001701,2]
[363529832,1748753441112,-430.0,0.0001701,2]
[363529835,1748753441124,-430.0,0.0001701,2]
[363529837,1748753441135,-432.64994341,0.0001701,2]
[363529839,1748753441149,-430.0,0.0001701,2]
[363529842,1748753441164,-430.0,0.0001701,2]
[363529844,1748753441176,-430.0,0.0001701,2]
[363529846,1748753441190,-430.0,0.0001726,2]
[363529848,1748753441200,-430.0,0.0001726,2]
[363529851,1748753441211,-430.0,0.0001726,2]
[363529853,1748753441224,-575.98,0.0001726,2]
[363529855,1748753441236,-663.33,0.0001726,2]
[363529857,1748753441249,-430.0,0.0001726,2]
[363529860,1748753441261,-430.0,0.0001726,2]
[363529862,1748753441274,-430.0,0.0001726,2]
[363529865,1748753441287,-531.97,0.0001726,2]
[363529867,1748753441300,-430.0,0.0001726,2]
[363529871,1748753441327,-1359.36,0.0001726,2]
[363529874,1748753441345,-430.0,0.0001726,2]
[363529876,1748753441362,-430.0,0.0001726,2]
[363529878,1748753441374,-430.0,0.0001726,2]
[363529881,1748753441385,-430.0,0.0001726,2]
[363529883,1748753441398,-430.0,0.0001726,2]
[363529885,1748753441411,-430.0,0.0001726,2]
[363529888,1748753441427,-430.0,0.0001726,2]
[363529891,1748753441442,-566.34,0.0001726,2]
[363529893,1748753441456,-430.0,0.0001726,2]
[363529895,1748753441467,-430.0,0.0001726,2]
[363529897,1748753441482,-430.0,0.0001726,2]
[363529900,1748753441494,-430.0,0.0001726,2]
[363529902,1748753441510,-430.0,0.0001726,2]
[363529905,1748753441524,-430.0,0.0001726,2]
[363529907,1748753441535,-430.0,0.0001726,2]
[363529909,1748753441547,-430.0,0.0001726,2]
[363529911,1748753441559,-430.0,0.0001726,2]
[363529914,1748753441572,-430.0,0.0001726,2]
[363529916,1748753441585,-430.0,0.0001726,2]
[363529918,1748753441597,-455.83,0.0001726,2]
[363529921,1748753441609,-430.0,0.0001726,2]
[363529923,1748753441622,-430.0,0.0001726,2]
[363529926,1748753441635,-430.0,0.0001726,2]
[363529928,1748753441648,-560.98,0.0001726,2]
[363529930,1748753441660,-467.84,0.0001726,2]
[363529932,1748753441673,-430.0,0.0001726,2]
[363529935,1748753441686,-430.0,0.0001726,2]
[363529937,1748753441698,-430.0,0.0001726,2]
[363529940,1748753441713,-1445.06,0.0001726,2]
[363529942,1748753441724,-728.13,0.00017283,2]
[363529944,1748753441736,-945.44,0.00017283,2]
[363529946,1748753441747,-1308.5,0.00017283,2]
[363529949,1748753441760,-829.74,0.00017283,2]
[363529951,1748753441771,-430.0,0.00017283,2]
[363529953,1748753441783,-430.0,0.00017283,2]
[363529955,1748753441795,-430.0,0.00017283,2]
[363529958,1748753441807,-440.35418715,0.00017284,2]
[363529960,1748753441819,-430.0,0.00017284,2]
[363529962,1748753441831,-325.54153428,0.00017284,2]
[363529964,1748753441843,-430.0,0.00017284,2]
[363529966,1748753441854,-430.0,0.00017284,2]
[363529969,1748753441866,-430.0,0.00017284,2]
[363529971,1748753441879,-243.93507252,0.00017284,2]
[363529973,1748753441890,-430.0,0.00017284,2]
[363529975,1748753441902,-510.0,0.00017284,2]
[363529978,1748753441915,-457.71069959,0.00017284,2]
[363529981,1748753441931,-417.67945617,0.00017284,2]
[363529983,1748753441943,-430.0,0.00017284,2]
[363529985,1748753441956,-160.0,0.00017525,2]
[363529987,1748753441968,-160.0,0.00017525,2]
[363529990,1748753441980,-160.0,0.00017526,2]
[363529992,1748753441992,-423.51412927,0.00017526,2]
[363529994,1748753442004,-229.3709046,0.00017526,2]
[363529996,1748753442016,-314.88098828,0.00017526,2]
[363529999,1748753442028,-160.0,0.00017526,2]
[363530001,1748753442041,-160.0,0.00017526,2]
[363530003,1748753442053,-212.80060342,0.00017526,2]
[363530006,1748753442065,-444.76230826,0.00017534,2]
[363530008,1748753442076,-430.0,0.00017534,2]
[363530010,1748753442087,-173.94,0.00017534,2]
[363530012,1748753442098,-575.98,0.00017534,2]
[363530014,1748753442110,-663.33,0.00017534,2]
[363530017,1748753442121,-430.0,0.00017534,2]
[363530019,1748753442133,-430.0,0.00017534,2]
[363530021,1748753442144,-430.0,0.00017534,2]
[363530023,1748753442157,-531.97,0.00017534,2]
[363530026,1748753442169,-430.0,0.00017534,2]
[363530028,1748753442180,-1359.36,0.00017534,2]
[363530030,1748753442191,-430.0,0.00017534,2]
[363530032,1748753442202,-430.0,0.00017534,2]
[363530034,1748753442213,-430.0,0.00017534,2]
[363530036,1748753442225,-430.0,0.00017534,2]
[363530039,1748753442236,-430.0,0.00017534,2]
[363530041,1748753442250,-386.04,0.00017534,2]
[363530043,1748753442262,-430.0,0.00017534,2]
[363530046,1748753442274,-566.34,0.00017534,2]
[363530047,1748753442284,-430.0,0.00017534,2]
[363530050,1748753442294,-430.0,0.00017534,2]
[363530052,1748753442304,-430.0,0.00017534,2]
[363530054,1748753442314,-430.0,0.00017534,2]
[363530055,1748753442324,-430.0,0.00017534,2]
[363530058,1748753442334,-430.0,0.00017534,2]
[363530059,1748753442343,-430.0,0.00017534,2]
[363530062,1748753442355,-430.0,0.00017534,2]
[363530064,1748753442365,-430.0,0.00017534,2]
[363530066,1748753442376,-430.0,0.00017534,2]
[363530068,1748753442386,-455.83,0.00017534,2]
[363530070,1748753442395,-430.0,0.00017534,2]
[363530071,1748753442406,-155.0,0.00017534,2]
[363530072,1748753442415,-430.0,0.00017534,2]
[363530073,1748753442425,-430.0,0.00017534,2]
[363530074,1748753442434,-560.98,0.00017534,2]
[363530082,1748753442622,-467.84,0.00017534,2]
[363530084,1748753442638,-430.0,0.00017534,2]
[363530086,1748753442649,-430.0,0.00017534,2]
[363530089,1748753442659,-430.0,0.00017534,2]
[363530090,1748753442668,-1445.06,0.00017534,2]
[363530092,1748753442678,-728.13,0.00017557,2]
[363530094,1748753442688,-945.44,0.00017557,2]
[363530096,1748753442698,-1308.5,0.00017557,2]
[363530098,1748753442709,-829.74,0.00017557,2]
[363530100,1748753442719,-430.0,0.00017557,2]
[363530102,1748753442728,-430.0,0.00017557,2]
[363530104,1748753442738,-430.0,0.00017557,2]
[363530106,1748753442748,-430.0,0.00017558,2]
[363530108,1748753442757,-430.0,0.00017558,2]
[363530111,1748753442767,-430.0,0.00017558,2]
[363530113,1748753442776,-430.0,0.00017558,2]
[363530114,1748753442786,-842.5625,0.00017651,2]
[363530116,1748753442795,-430.0,0.00017808,2]
[363530118,1748753442805,-430.0,0.00017808,2]
[363530120,1748753442815,-430.0,0.00017808,2]
[363530122,1748753442824,-430.0,0.00017808,2]
[363530124,1748753442833,-430.0,0.00017808,2]
[363530126,1748753442843,-575.98,0.00017808,2]
[363530128,1748753442852,-663.33,0.00017808,2]
[363530130,1748753442862,-430.0,0.00017808,2]
[363530132,1748753442871,-430.0,0.00017808,2]
[363530134,1748753442880,-397.78,0.00017808,2]
[363530136,1748753442890,-531.97,0.00017808,2]
[363530138,1748753442899,-430.0,0.00017808,2]
[363530140,1748753442909,-1359.36,0.00017808,2]
[363530142,1748753442918,-430.0,0.00017808,2]
[363530144,1748753442928,-430.0,0.00017808,2]
[363530146,1748753442936,-430.0,0.00017808,2]
[363530148,1748753442945,-430.0,0.00017808,2]
[363530150,1748753442954,-430.0,0.00017808,2]
[363530152,1748753442963,-430.0,0.00017808,2]
[363530154,1748753442972,-566.34,0.00017808,2]
[363530156,1748753442981,-430.0,0.00017808,2]
[363530159,1748753442992,-430.0,0.00017808,2]